fUST/lending_fUST_20240723
["ID","MTS","AMOUNT","RATE_DAILY","PERIOD"]
[332923126,1721680259459,-500.0,0.00014794,2]
[332923127,1721680259469,-500.0,0.00014794,2]
[332923128,1721680259481,-226.48,0.00014794,2]
[332923129,1721680259493,-500.0,0.00014794,2]
[332923130,1721680259503,-500.0,0.00014794,2]
[332923131,1721680259512,-500.0,0.00014794,2]
[332923132,1721680259521,-177.84,0.00014794,2]
[332923133,1721680259530,-500.0,0.00014794,2]
[332923134,1721680259539,-500.0,0.00014794,2]
[332923135,1721680259549,-500.0,0.00014794,2]
[332923136,1721680259559,-500.0,0.00014794,2]
[332923137,1721680259570,-500.0,0.00014794,2]
[332923138,1721680259581,-500.0,0.00014794,2]
[332923139,1721680259590,-500.0,0.00014794,2]
[332923140,1721680259600,-500.0,0.00014794,2]
[332923141,1721680259610,-500.0,0.00014794,2]
[332923142,1721680259620,-500.0,0.00014794,2]
[332923143,1721680259632,-1409.0,0.00014984,2]
[332923144,1721680259645,-150.0,0.00014984,2]
[332923145,1721680259655,-505.0,0.00014984,2]
[332923146,1721680259665,-951.10916369,0.00015,2]
[332923147,1721680259676,-2844.54225606,0.00015,2]
[332923148,1721680259686,-2426.72780151,0.00015,2]
[332923149,1721680259695,-1044.21000206,0.00015,2]
[332923150,1721680259706,-3055.07852324,0.00015,2]
[332923151,1721680259716,-1107.79559828,0.00015,2]
[332923152,1721680259726,-1748.25,0.00015068,2]
[332923153,1721680259737,-322.83,0.00015068,2]
[332923154,1721680259747,-500.0,0.00015068,2]
[332923155,1721680259759,-500.0,0.00015068,2]
[332923156,1721680259770,-1403.19,0.00015068,2]
[332923157,1721680259781,-500.0,0.00015068,2]
[332923158,1721680259791,-500.0,0.00015068,2]
[332923159,1721680259802,-500.0,0.00015068,2]
[332923160,1721680259813,-503.99,0.00015068,2]
[332923161,1721680259822,-500.0,0.00015068,2]
[332923162,1721680259831,-500.0,0.00015068,2]
[332923163,1721680259841,-470.67022137,0.00015068,2]
[332923164,1721680259850,-226.96,0.00015068,2]
[332923165,1721680259859,-1286.77,0.00015068,2]
[332923166,1721680259868,-500.0,0.00015068,2]
[332923167,1721680259880,-500.0,0.00015068,2]
[332923168,1721680259889,-500.0,0.00015068,2]
[332923169,1721680259899,-504.21,0.00015068,2]
[332923170,1721680259908,-500.0,0.00015068,2]
[332923171,1721680259918,-500.0,0.00015068,2]
[332923172,1721680259927,-500.0,0.00015068,2]
[332923173,1721680259936,-2398.17,0.00015068,2]
[332923174,1721680259947,-500.0,0.00015068,2]
[332923175,1721680259958,-500.0,0.00015068,2]
[332923176,1721680259967,-500.0,0.00015068,2]
[332923177,1721680259976,-1715.81,0.00015068,2]
[332923178,1721680259985,-519.73,0.00015068,2]
[332923179,1721680259995,-500.0,0.00015068,2]
[332923180,1721680260004,-500.0,0.00015068,2]
[332923181,1721680260013,-500.0,0.00015068,2]
[332923182,1721680260022,-2945.6,0.00015068,2]
[332923183,1721680260031,-500.0,0.00015068,2]
[332923184,1721680260040,-500.0,0.00015068,2]
[332923185,1721680260050,-548.84,0.00015068,2]
[332923186,1721680260060,-524.86,0.00015068,2]
[332923187,1721680260069,-500.0,0.00015068,2]
[332923188,1721680260079,-1056.19,0.00015068,2]
[332923189,1721680260088,-500.0,0.00015068,2]
[332923190,1721680260097,-500.0,0.00015068,2]
[332923191,1721680260106,-1214.04,0.00015068,2]
[332923192,1721680260116,-515.1011585,0.00015068,2]
[332923193,1721680260125,-900.64,0.00015068,2]
[332923194,1721680260134,-500.0,0.00015068,2]
[332923195,1721680260143,-500.0,0.00015068,2]
[332923196,1721680260152,-600.28,0.00015068,2]
[332923197,1721680260162,-1219.66,0.00015068,2]
[332923198,1721680260172,-500.0,0.00015068,2]
[332923199,1721680260181,-500.0,0.00015068,2]
[332923200,1721680260191,-500.0,0.00015068,2]
[332923201,1721680260201,-1201.16,0.00015068,2]
[332923202,1721680260213,-500.0,0.00015068,2]
[332923203,1721680260223,-500.0,0.00015068,2]
[332923204,1721680260233,-500.0,0.00015068,2]
[332923205,1721680260243,-381.05,0.00015068,2]
[332923206,1721680260255,-646.82,0.00015068,2]
[332923207,1721680260264,-500.0,0.00015068,2]
[332923208,1721680260276,-500.0,0.00015068,2]
[332923209,1721680260286,-500.0,0.00015068,2]
[332923210,1721680260295,-500.0,0.00015068,2]
[332923212,1721680260305,-500.0,0.00015068,2]
[332923213,1721680260315,-500.0,0.00015068,2]
[332923214,1721680260325,-500.0,0.00015068,2]
[332923215,1721680260335,-500.0,0.00015068,2]
[332923216,1721680260345,-500.0,0.00015068,2]
[332923217,1721680260354,-500.0,0.00015068,2]
[332923218,1721680260365,-500.0,0.00015068,2]
[332923219,1721680260375,-500.0,0.00015068,2]
[332923220,1721680260386,-500.0,0.00015068,2]
[332923221,1721680260397,-546.68631017,0.00015068,2]
[332923222,1721680260407,-500.0,0.00015068,2]
[332923223,1721680260417,-888.44,0.00015068,2]
[332923224,1721680260426,-500.0,0.00015068,2]
[332923225,1721680260438,-500.0,0.00015068,2]
[332923226,1721680260450,-500.0,0.00015068,2]
[332923227,1721680260460,-208.22625167,0.00015068,2]
[332923228,1721680260470,-500.0,0.00015068,2]
[332923229,1721680260479,-584.77,0.00015068,2]
[332923230,1721680260488,-500.0,0.00015068,2]
[332923231,1721680260498,-500.0,0.00015068,2]
[332923232,1721680260506,-500.0,0.00015068,2]
[332923233,1721680260516,-160.52958731,0.00015068,2]
[332923234,1721680260525,-750.07,0.00015068,2]
[332923235,1721680260534,-500.0,0.00015068,2]
[332923236,1721680260543,-500.0,0.00015068,2]
[332923237,1721680260552,-500.0,0.00015068,2]
[332923238,1721680260562,-500.0,0.00015068,2]
[332923239,1721680260572,-500.0,0.00015068,2]
[332923240,1721680260582,-500.0,0.00015068,2]
[332923241,1721680260592,-500.0,0.00015068,2]
[332923242,1721680260601,-500.0,0.00015068,2]
[332923243,1721680260612,-616.66,0.00015068,2]
[332923244,1721680260621,-261.05353704,0.00015068,2]
[332923245,1721680260630,-500.0,0.00015068,2]
[332923246,1721680260640,-500.0,0.00015068,2]
[332923247,1721680260651,-500.0,0.00015068,2]
[332923248,1721680260661,-500.0,0.00015068,2]
[332923249,1721680260672,-500.0,0.00015068,2]
[332923250,1721680260685,-500.0,0.00015068,2]
[332923251,1721680260694,-500.0,0.00015068,2]
[332923252,1721680260703,-500.0,0.00015068,2]
[332923253,1721680260805,-500.0,0.00015068,2]
[332923254,1721680260815,-500.0,0.00015068,2]
[332923255,1721680260824,-500.0,0.00015068,2]
[332923256,1721680260834,-500.0,0.00015068,2]
[332923257,1721680260845,-500.0,0.00015068,2]
[332923258,1721680260854,-500.0,0.00015068,2]
[332923259,1721680260864,-500.0,0.00015068,2]
[332923260,1721680260877,-500.0,0.00015068,2]
[332923261,1721680260886,-500.0,0.00015068,2]
[332923262,1721680260896,-500.0,0.00015068,2]
[332923263,1721680260905,-297.12863458,0.00015068,2]
[332923264,1721680260915,-609.07,0.00015068,2]
[332923265,1721680260924,-500.0,0.00015068,2]
[332923266,1721680260934,-601.9,0.00015068,2]
[332923267,1721680260946,-500.0,0.00015068,2]
[332923268,1721680260955,-522.82,0.00015068,2]
[332923269,1721680260964,-500.0,0.00015068,2]
[332923270,1721680260974,-627.63,0.00015068,2]
[332923271,1721680260983,-500.0,0.00015068,2]
[332923272,1721680260993,-540.01,0.00015068,2]
[332923273,1721680261002,-500.0,0.00015068,2]
[332923274,1721680261011,-500.0,0.00015068,2]
[332923275,1721680261021,-500.0,0.00015068,2]
[332923276,1721680261030,-500.0,0.00015068,2]
[332923277,1721680261040,-1110.47,0.00015068,2]
[332923278,1721680261049,-500.0,0.00015068,2]
[332923279,1721680261058,-568.51,0.00015068,2]
[332923280,1721680261068,-423.35156347,0.00015068,2]
[332923281,1721680261077,-500.0,0.00015068,2]
[332923282,1721680261087,-500.0,0.00015068,2]
[332923283,1721680261096,-500.0,0.00015068,2]
[332923284,1721680261106,-500.0,0.00015068,2]
[332923285,1721680261115,-500.0,0.00015068,2]
[332923286,1721680261125,-500.0,0.00015068,2]
[332923287,1721680261135,-500.0,0.00015068,2]
[332923288,1721680261144,-633.99,0.00015068,2]
[332923289,1721680261155,-500.0,0.00015068,2]
[332923290,1721680261165,-500.0,0.00015068,2]
[332923291,1721680261174,-500.0,0.00015068,2]
[332923292,1721680261184,-500.0,0.00015068,2]
[332923293,1721680261193,-500.0,0.00015068,2]
[332923294,1721680261203,-500.0,0.00015068,2]
[332923295,1721680261212,-500.0,0.00015068,2]
[332923296,1721680261221,-500.0,0.00015068,2]
[332923297,1721680261231,-500.0,0.00015068,2]
[332923298,1721680261241,-677.52,0.00015068,2]
[332923299,1721680261250,-509.15,0.00015068,2]
[332923300,1721680261260,-522.44,0.00015068,2]
[332923301,1721680261270,-500.0,0.00015068,2]
[332923302,1721680261280,-500.0,0.00015068,2]
[332923303,1721680261290,-500.0,0.00015068,2]
[332923304,1721680261299,-573.14,0.00015068,2]
[332923305,1721680261309,-505.86525202,0.00015068,2]
[332923306,1721680261319,-500.0,0.00015068,2]
[332923307,1721680261329,-562.75,0.00015068,2]
[332923308,1721680261338,-500.0,0.00015068,2]
[332923309,1721680261348,-500.0,0.00015068,2]
[332923310,1721680261358,-500.0,0.00015068,2]
[332923311,1721680261367,-500.0,0.00015068,2]
[332923312,1721680261377,-500.0,0.00015068,2]
[332923313,1721680261387,-500.0,0.00015068,2]
[332923314,1721680261397,-500.0,0.00015068,2]
[332923315,1721680261408,-500.0,0.00015068,2]
[332923316,1721680261418,-500.0,0.00015068,2]
[332923317,1721680261428,-500.0,0.00015068,2]
[332923318,1721680261439,-500.0,0.00015068,2]
[332923319,1721680261448,-607.77,0.00015068,2]
[332923320,1721680261458,-500.0,0.00015068,2]
[332923321,1721680261469,-500.0,0.00015068,2]
[332923322,1721680261478,-500.0,0.00015068,2]
[332923323,1721680261488,-500.0,0.00015068,2]
[332923324,1721680261498,-500.0,0.00015068,2]
[332923325,1721680261507,-500.0,0.00015068,2]
[332923326,1721680261516,-500.0,0.00015068,2]
[332923327,1721680261525,-500.0,0.00015068,2]
[332923328,1721680261535,-500.0,0.00015068,2]
[332923329,1721680261544,-497.85793698,0.00015068,2]
[332923330,1721680261554,-500.0,0.00015068,2]
[332923331,1721680261563,-500.0,0.00015068,2]
[332923332,1721680261572,-500.0,0.00015068,2]
[332923333,1721680261582,-500.0,0.00015068,2]
[332923334,1721680261593,-500.0,0.00015068,2]
[332923335,1721680261602,-809.09,0.00015068,2]
[332923336,1721680261612,-500.0,0.00015068,2]
[332923337,1721680261622,-502.96,0.00015068,2]
[332923338,1721680261631,-500.0,0.00015068,2]
[332923339,1721680261641,-500.0,0.00015068,2]
[332923340,1721680261651,-246.72,0.00015068,2]
[332923341,1721680261660,-500.0,0.00015068,2]
[332923342,1721680261670,-500.0,0.00015068,2]
[332923343,1721680261680,-500.0,0.00015068,2]
[332923344,1721680261691,-500.0,0.00015068,2]
[332923345,1721680261701,-500.0,0.00015068,2]
[332923346,1721680261711,-500.0,0.00015068,2]
[332923347,1721680261721,-500.0,0.00015068,2]
[332923348,1721680261730,-500.0,0.00015068,2]
[332923349,1721680261740,-500.0,0.00015068,2]
[332923350,1721680261750,-500.0,0.00015068,2]
[332923351,1721680261761,-500.0,0.00015068,2]
[332923352,1721680261770,-500.0,0.00015068,2]
[332923353,1721680261780,-500.0,0.00015068,2]
[332923354,1721680261790,-500.0,0.00015068,2]
[332923355,1721680261799,-500.0,0.00015068,2]
[332923356,1721680261809,-500.0,0.00015068,2]
[332923357,1721680261818,-500.0,0.00015068,2]
[332923358,1721680261827,-500.0,0.00015068,2]
[332923359,1721680261837,-500.0,0.00015068,2]
[332923360,1721680261846,-500.0,0.00015068,2]
[332923361,1721680261856,-500.0,0.00015068,2]
[332923362,1721680261866,-500.0,0.00015068,2]
[332923363,1721680261879,-356.45,0.00015068,2]
[332923364,1721680261889,-500.0,0.00015068,2]
[332923365,1721680261898,-1748.25,0.00015342,2]
[332923366,1721680261908,-500.0,0.00015342,2]
[332923367,1721680261918,-500.0,0.00015342,2]
[332923368,1721680261928,-1403.19,0.00015342,2]
[332923369,1721680261941,-500.0,0.00015342,2]
[332923370,1721680261954,-500.0,0.00015342,2]
[332923371,1721680261963,-500.0,0.00015342,2]
[332923372,1721680261973,-503.99,0.00015342,2]
[332923373,1721680261983,-500.0,0.00015342,2]
[332923374,1721680261993,-500.0,0.00015342,2]
[332923375,1721680262002,-1286.77,0.00015342,2]
[332923376,1721680262012,-500.0,0.00015342,2]
[332923377,1721680262022,-500.0,0.00015342,2]
[332923378,1721680262032,-500.0,0.00015342,2]
[332923379,1721680262041,-504.21,0.00015342,2]
[332923380,1721680262051,-500.0,0.00015342,2]
[332923381,1721680262061,-500.0,0.00015342,2]
[332923382,1721680262070,-500.0,0.00015342,2]
[332923383,1721680262080,-2398.17,0.00015342,2]
[332923384,1721680262089,-500.0,0.00015342,2]
[332923385,1721680262099,-500.0,0.00015342,2]
[332923386,1721680262109,-500.0,0.00015342,2]
[332923387,1721680262119,-1715.81,0.00015342,2]
[332923388,1721680262129,-519.73,0.00015342,2]
[332923389,1721680262139,-500.0,0.00015342,2]
[332923390,1721680262149,-500.0,0.00015342,2]
[332923391,1721680262159,-500.0,0.00015342,2]
[332923392,1721680262169,-2945.6,0.00015342,2]
[332923393,1721680262178,-500.0,0.00015342,2]
[332923394,1721680262190,-500.0,0.00015342,2]
[332923395,1721680262199,-548.84,0.00015342,2]
[332923396,1721680262208,-273.76005554,0.00015342,2]
[332923397,1721680262218,-1056.19,0.00015342,2]
[332923398,1721680262228,-500.0,0.00015342,2]
[332923399,1721680262237,-500.0,0.00015342,2]
[332923400,1721680262247,-1214.04,0.00015342,2]
[332923401,1721680262257,-900.64,0.00015342,2]
[332923402,1721680262267,-500.0,0.00015342,2]
[332923403,1721680262277,-226.73,0.00015342,2]
[332923404,1721680262287,-600.28,0.00015342,2]
[332923405,1721680262296,-1219.66,0.00015342,2]
[332923406,1721680262305,-500.0,0.00015342,2]
[332923407,1721680262315,-500.0,0.00015342,2]
[332923408,1721680262324,-396.62744773,0.00015342,2]
[332923409,1721680262334,-1201.16,0.00015342,2]
[332923410,1721680262343,-500.0,0.00015342,2]
[332923411,1721680262353,-500.0,0.00015342,2]
[332923412,1721680262362,-500.0,0.00015342,2]
[332923413,1721680262372,-646.82,0.00015342,2]
[332923414,1721680262382,-500.0,0.00015342,2]
[332923415,1721680262391,-500.0,0.00015342,2]
[332923416,1721680262400,-387.84,0.00015342,2]
[332923417,1721680262410,-500.0,0.00015342,2]
[332923418,1721680262419,-500.0,0.00015342,2]
[332923419,1721680262429,-500.0,0.00015342,2]
[332923420,1721680262443,-525.6,0.00015342,2]
[332923421,1721680262453,-500.0,0.00015342,2]
[332923422,1721680262462,-500.0,0.00015342,2]
[332923423,1721680262471,-500.0,0.00015342,2]
[332923424,1721680262481,-500.0,0.00015342,2]
[332923425,1721680262490,-500.0,0.00015342,2]
[332923426,1721680262500,-554.24,0.00015342,2]
[332923427,1721680262509,-447.43,0.00015342,2]
[332923428,1721680262519,-888.44,0.00015342,2]
[332923429,1721680262528,-500.0,0.00015342,2]
[332923430,1721680262537,-500.0,0.00015342,2]
[332923431,1721680262546,-500.0,0.00015342,2]
[332923432,1721680262556,-415.88450371,0.00015342,2]
[332923433,1721680262565,-584.77,0.00015342,2]
[332923434,1721680262575,-500.0,0.00015342,2]
[332923435,1721680262679,-500.0,0.00015342,2]
[332923436,1721680262691,-500.0,0.00015342,2]
[332923437,1721680262701,-750.07,0.00015342,2]
[332923438,1721680262711,-500.0,0.00015342,2]
[332923439,1721680262721,-500.0,0.00015342,2]
[332923440,1721680262731,-500.0,0.00015342,2]
[332923441,1721680262740,-500.0,0.00015342,2]
[332923442,1721680262749,-500.0,0.00015342,2]
[332923443,1721680262758,-500.0,0.00015342,2]
[332923444,1721680262768,-500.0,0.00015342,2]
[332923445,1721680262778,-500.0,0.00015342,2]
[332923446,1721680262787,-500.0,0.00015342,2]
[332923447,1721680262796,-500.0,0.00015342,2]
[332923448,1721680262806,-500.0,0.00015342,2]
[332923449,1721680262815,-500.0,0.00015342,2]
[332923450,1721680262825,-500.0,0.00015342,2]
[332923451,1721680262835,-500.0,0.00015342,2]
[332923452,1721680262844,-500.0,0.00015342,2]
[332923453,1721680262854,-500.0,0.00015342,2]
[332923454,1721680262864,-500.0,0.00015342,2]
[332923455,1721680262877,-500.0,0.00015342,2]
[332923456,1721680262887,-500.0,0.00015342,2]
[332923457,1721680262896,-500.0,0.00015342,2]
[332923458,1721680262907,-500.0,0.00015342,2]
[332923459,1721680262917,-500.0,0.00015342,2]
[332923460,1721680262926,-500.0,0.00015342,2]
[332923461,1721680262939,-500.0,0.00015342,2]
[332923462,1721680262951,-500.0,0.00015342,2]
[332923463,1721680262960,-609.07,0.00015342,2]
[332923464,1721680262971,-530.42,0.00015342,2]
[332923465,1721680262981,-500.0,0.00015342,2]
[332923466,1721680262991,-522.82,0.00015342,2]
[332923467,1721680263000,-500.0,0.00015342,2]
[332923468,1721680263010,-627.63,0.00015342,2]
[332923469,1721680263019,-500.0,0.00015342,2]
[332923470,1721680263028,-540.01,0.00015342,2]
[332923471,1721680263038,-500.0,0.00015342,2]
[332923472,1721680263048,-500.0,0.00015342,2]
[332923473,1721680263058,-500.0,0.00015342,2]
[332923474,1721680263068,-1110.47,0.00015342,2]
[332923475,1721680263078,-500.0,0.00015342,2]
[332923476,1721680263089,-568.51,0.00015342,2]
[332923477,1721680263098,-500.0,0.00015342,2]
[332923478,1721680263108,-500.0,0.00015342,2]
[332923479,1721680263117,-500.0,0.00015342,2]
[332923480,1721680263126,-500.0,0.00015342,2]
[332923481,1721680263137,-500.0,0.00015342,2]
[332923482,1721680263147,-500.0,0.00015342,2]
[332923483,1721680263157,-633.99,0.00015342,2]
[332923484,1721680263166,-585.7,0.00015342,2]
[332923485,1721680263175,-500.0,0.00015342,2]
[332923486,1721680263184,-500.0,0.00015342,2]
[332923487,1721680263195,-500.0,0.00015342,2]
[332923488,1721680263206,-500.0,0.00015342,2]
[332923489,1721680263216,-500.0,0.00015342,2]
[332923490,1721680263226,-500.0,0.00015342,2]
[332923491,1721680263236,-500.0,0.00015342,2]
[332923492,1721680263246,-677.52,0.00015342,2]
[332923493,1721680263255,-509.15,0.00015342,2]
[332923494,1721680263265,-500.0,0.00015342,2]
[332923495,1721680263275,-500.0,0.00015342,2]
[332923496,1721680263285,-500.0,0.00015342,2]
[332923497,1721680263295,-598.50153424,0.00015342,2]
[332923498,1721680263306,-562.75,0.00015342,2]
[332923499,1721680263316,-500.0,0.00015342,2]
[332923500,1721680263326,-500.0,0.00015342,2]
[332923501,1721680263336,-500.0,0.00015342,2]
[332923502,1721680263345,-572.79,0.00015342,2]
[332923503,1721680263356,-500.0,0.00015342,2]
[332923504,1721680263365,-500.0,0.00015342,2]
[332923505,1721680263375,-500.0,0.00015342,2]
[332923506,1721680263385,-500.0,0.00015342,2]
[332923507,1721680263395,-500.0,0.00015342,2]
[332923508,1721680263405,-500.0,0.00015342,2]
[332923509,1721680263415,-607.77,0.00015342,2]
[332923510,1721680263424,-500.0,0.00015342,2]
[332923511,1721680263434,-500.0,0.00015342,2]
[332923512,1721680263446,-500.0,0.00015342,2]
[332923513,1721680263455,-500.0,0.00015342,2]
[332923514,1721680263466,-500.0,0.00015342,2]
[332923515,1721680263475,-500.0,0.00015342,2]
[332923516,1721680263485,-500.0,0.00015342,2]
[332923517,1721680263495,-500.0,0.00015342,2]
[332923518,1721680263505,-500.0,0.00015342,2]
[332923519,1721680263515,-500.0,0.00015342,2]
[332923520,1721680263525,-571.79,0.00015342,2]
[332923521,1721680263534,-500.0,0.00015342,2]
[332923522,1721680263545,-500.0,0.00015342,2]
[332923523,1721680263554,-500.0,0.00015342,2]
[332923524,1721680263564,-156.820474,0.00015342,2]
[332923525,1721680263573,-809.09,0.00015342,2]
[332923526,1721680263583,-156.820474,0.00015342,2]
[332923527,1721680263593,-196.48811,0.00015342,2]
[332923528,1721680263603,-196.48811,0.00015342,2]
[332923529,1721680263613,-500.0,0.00015342,2]
[332923530,1721680263622,-554.51,0.00015342,2]
[332923531,1721680263633,-500.0,0.00015342,2]
[332923532,1721680263643,-500.0,0.00015342,2]
[332923533,1721680263653,-500.0,0.00015342,2]
[332923534,1721680263663,-151.0,0.00015342,2]
[332923535,1721680263672,-500.0,0.00015342,2]
[332923536,1721680263681,-500.0,0.00015342,2]
[332923537,1721680263693,-500.0,0.00015342,2]
[332923538,1721680263702,-500.0,0.00015342,2]
[332923539,1721680263713,-607.53917669,0.00015342,2]
[332923540,1721680263723,-500.0,0.00015342,2]
[332923541,1721680263733,-500.0,0.00015342,2]
[332923542,1721680263742,-500.0,0.00015342,2]
[332923543,1721680263753,-500.0,0.00015342,2]
[332923544,1721680263762,-500.0,0.00015342,2]
[332923545,1721680263773,-500.0,0.00015342,2]
[332923546,1721680263782,-500.0,0.00015342,2]
[332923547,1721680263793,-163.32,0.00015342,2]
[332923548,1721680263803,-500.0,0.00015342,2]
[332923549,1721680263814,-207.851365,0.00015342,2]
[332923550,1721680263824,-207.851365,0.00015342,2]
[332923551,1721680263833,-500.0,0.00015342,2]
[332923552,1721680263843,-500.0,0.00015342,2]
[332923553,1721680263853,-500.0,0.00015342,2]
[332923554,1721680263864,-232.80705897,0.00015342,2]
[332923555,1721680263878,-151.0,0.00015342,2]
[332923556,1721680263888,-582.25,0.00015342,2]
[332923557,1721680263897,-151.0,0.00015342,2]
[332923558,1721680263908,-500.0,0.00015342,2]
[332923559,1721680263918,-200.0,0.00015496,2]
[332923560,1721680263928,-1748.25,0.00015616,2]
[332923561,1721680263938,-500.0,0.00015616,2]
[332923562,1721680263948,-500.0,0.00015616,2]
[332923563,1721680263962,-1403.19,0.00015616,2]
[332923564,1721680263974,-500.0,0.00015616,2]
[332923565,1721680263985,-500.0,0.00015616,2]
[332923566,1721680263994,-500.0,0.00015616,2]
[332923567,1721680264004,-503.99,0.00015616,2]
[332923568,1721680264014,-500.0,0.00015616,2]
[332923569,1721680264023,-615.83952288,0.00015616,2]
[332923570,1721680264034,-1286.77,0.00015616,2]
[332923571,1721680264044,-500.0,0.00015616,2]
[332923572,1721680264054,-500.0,0.00015616,2]
[332923573,1721680264065,-500.0,0.00015616,2]
[332923574,1721680264074,-504.21,0.00015616,2]
[332923575,1721680264083,-500.0,0.00015616,2]
[332923576,1721680264094,-500.0,0.00015616,2]
[332923577,1721680264105,-577.01,0.00015616,2]
[332923578,1721680264116,-2398.17,0.00015616,2]
[332923579,1721680264127,-500.0,0.00015616,2]
[332923580,1721680264137,-500.0,0.00015616,2]
[332923581,1721680264148,-500.0,0.00015616,2]
[332923582,1721680264159,-1715.81,0.00015616,2]
[332923583,1721680264169,-519.73,0.00015616,2]
[332923584,1721680264179,-500.0,0.00015616,2]
[332923585,1721680264191,-543.27,0.00015616,2]
[332923586,1721680264200,-500.0,0.00015616,2]
[332923587,1721680264210,-2945.6,0.00015616,2]
[332923588,1721680264219,-500.0,0.00015616,2]
[332923589,1721680264228,-500.0,0.00015616,2]
[332923590,1721680264237,-548.84,0.00015616,2]
[332923591,1721680264247,-1056.19,0.00015616,2]
[332923592,1721680264256,-500.0,0.00015616,2]
[332923593,1721680264266,-500.0,0.00015616,2]
[332923594,1721680264276,-1214.04,0.00015616,2]
[332923595,1721680264286,-900.64,0.00015616,2]
[332923596,1721680264296,-500.0,0.00015616,2]
[332923597,1721680264306,-600.28,0.00015616,2]
[332923598,1721680264317,-1219.66,0.00015616,2]
[332923599,1721680264327,-500.0,0.00015616,2]
[332923600,1721680264336,-162.98563991,0.00015616,2]
[332923601,1721680264346,-1201.16,0.00015616,2]
[332923602,1721680264355,-500.0,0.00015616,2]
[332923603,1721680264456,-500.0,0.00015616,2]
[332923604,1721680264467,-500.0,0.00015616,2]
[332923605,1721680264477,-646.82,0.00015616,2]
[332923606,1721680264487,-500.0,0.00015616,2]
[332923607,1721680264497,-500.0,0.00015616,2]
[332923608,1721680264507,-500.0,0.00015616,2]
[332923609,1721680264516,-477.17599564,0.00015616,2]
[332923610,1721680264526,-500.0,0.00015616,2]
[332923611,1721680264535,-500.0,0.00015616,2]
[332923612,1721680264545,-407.20595464,0.00015616,2]
[332923613,1721680264555,-511.87,0.00015616,2]
[332923614,1721680264566,-500.0,0.00015616,2]
[332923615,1721680264575,-500.0,0.00015616,2]
[332923616,1721680264585,-888.44,0.00015616,2]
[332923617,1721680264595,-500.0,0.00015616,2]
[332923618,1721680264605,-500.0,0.00015616,2]
[332923619,1721680264615,-500.0,0.00015616,2]
[332923620,1721680264624,-584.77,0.00015616,2]
[332923621,1721680264634,-500.0,0.00015616,2]
[332923622,1721680264645,-500.0,0.00015616,2]
[332923623,1721680264655,-500.0,0.00015616,2]
[332923624,1721680264665,-500.0,0.00015616,2]
[332923625,1721680264675,-500.0,0.00015616,2]
[332923626,1721680264685,-286.45378467,0.00015616,2]